bitfinex/quotes_SOLUSD_20260226
["timestamp","ask_amount","ask_price","bid_price","bid_amount"]
[1772117332742,0.78669393,86.569,86.511,0.74697839]
[1772117332743,0.78669393,86.569,86.53,15.41399423]
[1772117332946,11.5516126,86.568,86.531,11.55655198]
[1772117333132,15.41399423,86.54,86.5,15.41399423]
[1772117333322,15.41399423,86.54,86.46,46.26398722]
[1772117333323,0.78669393,86.509,86.46,15.41399423]
[1772117333524,15.41399423,86.53,86.49,15.41399423]
[1772117333720,15.41399423,86.55,86.501,0.74697839]
[1772117333940,15.41399423,86.55,86.51,15.41399423]
[1772117334143,0.78669393,86.557,86.52,15.41399423]
[1772117334440,0.78669393,86.557,86.53,15.41399423]
[1772117334639,11.5516126,86.568,86.52,15.41399423]
[1772117334640,15.41399423,86.56,86.52,15.41399423]
[1772117334945,15.41399423,86.56,86.524,11.5573663]
[1772117335139,0.78669393,86.549,86.5,15.41399423]
[1772117335341,15.41399423,86.55,86.51,15.41399423]
[1772117335642,15.41399423,86.56,86.52,15.41399423]
[1772117335819,0.78669393,86.589,86.521,0.74697839]
[1772117336339,0.75135651,86.599,86.521,0.74697839]
[1772117336816,15.41399423,86.59,86.55,15.41399423]
[1772117337021,11.54881104,86.589,86.551,11.55388152]
[1772117337244,15.41399423,86.59,86.551,11.55388152]
[1772117337722,0.75135651,86.579,86.54,15.41399423]
[1772117337924,15.41399423,86.57,86.53,26.97065514]
[1772117338338,0.75135651,86.579,86.54,15.41399423]
[1772117338543,40.41663778,86.598,86.53,15.41399423]
[1772117338544,0.75135651,86.569,86.53,15.41399423]
[1772117338851,0.75135651,86.569,86.524,11.55737464]
[1772117339030,11.5516126,86.568,86.53,15.41399423]
[1772117339346,11.5516126,86.568,86.524,11.55737464]
[1772117339544,11.5516126,86.568,86.53,15.41399423]
[1772117339730,0.75135651,86.569,86.54,15.41399423]
[1772117339931,11.55026354,86.579,86.533,0.73034463]
[1772117340135,26.96404499,86.58,86.54,15.41399423]
[1772117340443,0.75135651,86.58,86.53,15.41399423]
[1772117340647,40.42317286,86.584,86.524,11.55737464]
[1772117340648,15.41399423,86.56,86.524,11.55737464]
[1772117341048,11.55281368,86.559,86.51,15.41399423]
[1772117341345,0.75135651,86.558,86.51,15.41399423]
[1772117341538,0.75135651,86.549,86.501,0.73034463]
[1772117341740,15.41399423,86.54,86.492,40.46617027]
[1772117341940,15.41399423,86.55,86.51,15.41399423]
[1772117342127,0.75135651,86.582,86.531,0.73034463]
[1772117342326,46.16218534,86.652,86.57,15.41399423]
[1772117342327,15.41399423,86.61,86.57,15.41399423]
[1772117342628,46.15823988,86.659,86.5,15.41399423]
[1772117342629,0.75135651,86.629,86.59,15.41399423]
[1772117342841,0.75135651,86.599,86.546,0.73034463]
[1772117343045,0.75135651,86.599,86.57,15.41399423]
[1772117343235,15.41399423,86.61,86.57,15.41399423]
[1772117343551,0.75135651,86.609,86.57,15.41399423]
[1772117344129,0.75135651,86.609,86.58,15.41399423]
[1772117344325,15.41399423,86.6,86.55,0.73034463]
[1772117344531,0.75135651,86.599,86.551,11.55388152]
[1772117345051,0.75135651,86.614,86.563,0.73034463]
[1772117345256,0.75135651,86.614,86.541,46.22046846]
[1772117345257,0.75135651,86.614,86.58,9.89000755]
[1772117345439,11.54561093,86.613,86.58,9.89000755]
[1772117346156,9.89000755,86.6,86.56,9.89000755]
[1772117346333,9.89000755,86.59,86.559,11.55275509]
[1772117346948,9.89000755,86.59,86.552,0.73034463]
[1772117346949,9.89000755,86.58,86.538,0.73034463]
[1772117347137,190.50258043,86.613,86.525,11.55735336]
[1772117347138,9.89000755,86.56,86.525,11.55735336]
[1772117347333,0.75135651,86.539,86.49,9.89000755]
[1772117347848,9.89000755,86.5,86.436,0.73034463]
[1772117348152,0.75135651,86.51,86.44,9.89000755]
[1772117348340,10.64136406,86.51,86.47,9.89000755]
[1772117348726,9.89000755,86.52,86.48,9.89000755]
[1772117348952,0.75135651,86.519,86.48,9.89000755]
[1772117349133,0.75135651,86.519,86.464,0.73034463]
[1772117349134,9.89000755,86.51,86.47,9.89000755]
[1772117349452,46.21985129,86.543,86.47,9.89000755]
[1772117349453,9.89000755,86.52,86.48,9.89000755]
[1772117349629,9.89000755,86.52,86.47,0.73034463]
[1772117349630,11.55828844,86.518,86.47,9.89000755]
[1772117349830,11.55828844,86.518,86.452,0.73034463]
[1772117349831,9.89000755,86.49,86.452,0.73034463]
[1772117350048,9.89000755,86.5,86.452,0.73034463]
[1772117350255,11.55828844,86.518,86.422,0.73034463]
[1772117350256,9.89000755,86.46,86.422,0.73034463]
[1772117350432,9.89000755,86.46,86.41,9.89000755]
[1772117350433,9.89000755,86.45,86.41,9.89000755]
[1772117350638,9.89000755,86.44,86.407,0.73034463]
[1772117350854,11.55828844,86.518,86.415,12.30240966]
[1772117350855,0.75135651,86.517,86.415,12.30240966]
[1772117351163,0.75135651,86.517,86.371,46.31168581]
[1772117351164,9.89000755,86.44,86.4,10.62035218]
[1772117351531,9.89000755,86.44,86.349,57.93442183]
[1772117351532,9.89000755,86.43,86.39,9.89000755]
[1772117351861,11.56751379,86.449,86.401,0.73034463]
[1772117352035,9.89000755,86.48,86.44,9.89000755]
[1772117352233,9.89000755,86.47,86.431,0.73034463]
[1772117352444,9.89000755,86.49,86.45,10.62035218]
[1772117352837,9.89000755,86.48,86.44,9.89000755]
[1772117353166,9.89000755,86.48,86.44,10.62035218]
[1772117353372,0.75135651,86.518,86.471,0.73034463]
[1772117353655,9.89000755,86.51,86.471,0.73034463]
[1772117353854,40.44933431,86.528,86.49,9.89000755]
[1772117354032,9.89000755,86.54,86.5,9.89000755]
[1772117354226,9.89000755,86.54,86.501,0.73034463]
[1772117354653,9.89000755,86.53,86.49,9.89000755]
[1772117354839,9.89000755,86.52,86.472,0.73034463]
[1772117355038,9.89000755,86.51,86.472,0.73034463]
[1772117355232,27.01412753,86.53,86.49,15.45744199]
[1772117355439,15.45744199,86.52,86.48,15.45744199]
[1772117355646,15.45744199,86.51,86.476,0.73034463]
[1772117355846,15.45744199,86.51,86.47,15.45744199]
[1772117356054,15.45744199,86.51,86.471,0.73034463]
[1772117356334,15.45744199,86.49,86.455,0.73034463]
[1772117356536,15.45744199,86.48,86.443,0.73034463]
[1772117356748,0.75135651,86.497,86.443,0.73034463]
[1772117356939,15.45744199,86.51,86.47,15.45744199]
[1772117357131,40.45354199,86.519,86.48,15.45744199]
[1772117357344,11.55815485,86.519,86.481,11.56323354]
[1772117357527,11.5568191,86.529,86.5,15.45744199]
[1772117357736,11.55393528,86.551,86.52,15.45744199]
[1772117357940,15.45744199,86.53,86.481,11.56323354]
[1772117358151,15.45744199,86.52,86.481,11.56323354]
[1772117358329,15.45744199,86.52,86.479,0.73034463]
[1772117358534,15.45744199,86.51,86.464,0.73034463]
[1772117358755,0.75135651,86.523,86.464,0.73034463]
[1772117358756,15.45744199,86.5,86.464,0.73034463]
[1772117359258,11.56082729,86.499,86.464,0.73034463]
[1772117359563,15.45744199,86.52,86.481,0.73034463]
[1772117359739,15.45744199,86.53,86.49,15.45744199]
[1772117360066,29.64080066,86.537,86.471,0.73034463]
[1772117360067,15.45744199,86.52,86.471,0.73034463]
[1772117360235,15.45744199,86.53,86.491,0.73034463]
[1772117360659,15.45744199,86.52,86.481,0.73034463]
[1772117360954,15.45744199,86.53,86.491,0.73034463]
[1772117361143,11.55561718,86.538,86.491,0.73034463]
[1772117361338,11.55428201,86.548,86.511,0.73034463]
[1772117361738,11.55428201,86.548,86.51,15.45744199]
[1772117361739,11.55428201,86.548,86.5,15.45744199]
[1772117361934,15.45744199,86.54,86.5,15.45744199]
[1772117362238,11.55428201,86.548,86.51,15.45744199]
[1772117362438,11.55428201,86.548,86.511,0.73034463]
[1772117362654,11.55147916,86.569,86.53,15.45744199]
[1772117363152,40.43017707,86.569,86.531,0.73034463]
[1772117363458,40.43017707,86.569,86.474,46.25615425]
[1772117363459,0.75135651,86.539,86.459,0.73034463]
[1772117363760,132.82666695,86.579,86.461,0.73034463]
[1772117363761,15.45744199,86.5,86.461,0.73034463]
[1772117364131,15.45744199,86.51,86.47,15.45744199]
[1772117364335,15.45744199,86.51,86.471,0.73034463]
[1772117364664,15.45744199,86.48,86.44,15.45744199]
[1772117364834,0.75135651,86.499,86.45,15.45744199]
[1772117365036,15.45744199,86.51,86.47,15.45744199]
[1772117365230,0.75135651,86.518,86.47,15.45744199]
[1772117365231,0.75135651,86.518,86.471,0.73034463]
[1772117365449,11.55842204,86.517,86.473,0.73034463]
[1772117365643,40.45447715,86.517,86.473,0.73034463]
[1772117366155,11.55842204,86.517,86.48,15.45744199]
[1772117366358,15.45744199,86.51,86.473,0.73034463]
[1772117366952,15.45744199,86.51,86.462,11.56569569]
[1772117367550,15.45744199,86.5,86.45,15.45744199]
[1772117367748,15.45744199,86.5,86.451,0.74601165]
[1772117367955,15.45744199,86.5,86.46,15.45744199]
[1772117368363,40.45821822,86.509,86.461,0.74601165]
[1772117368656,15.45744199,86.5,86.461,0.74601165]
[1772117369058,15.45744199,86.49,86.446,0.74601165]
[1772117369242,0.7503102,86.489,86.446,0.74601165]
[1772117369438,15.45744199,86.47,86.432,0.74601165]
[1772117369645,15.45744199,86.47,86.385,92.60820572]
[1772117369646,15.45744199,86.46,86.42,15.45744199]
[1772117369842,40.46804179,86.488,86.441,0.74601165]
[1772117370053,40.46804179,86.488,86.45,15.45744199]
[1772117370580,0.7503102,86.518,86.471,0.74601165]
[1772117370859,15.45744199,86.51,86.471,0.74601165]
[1772117371067,28.89837763,86.511,86.471,0.74601165]
[1772117371266,15.45744199,86.51,86.461,0.74601165]
[1772117371451,28.89837763,86.511,86.461,0.74601165]
[1772117371452,11.56082729,86.499,86.461,0.74601165]
[1772117371649,11.56082729,86.499,86.47,15.45744199]
[1772117372153,11.55962454,86.508,86.48,15.45744199]
[1772117372462,11.55962454,86.508,86.471,0.74601165]
[1772117372463,15.45744199,86.53,86.49,15.45744199]
[1772117372655,15.45744199,86.53,86.481,0.74601165]
[1772117372960,0.7503102,86.519,86.471,0.74601165]
[1772117373155,0.7503102,86.519,86.48,15.45744199]
[1772117373351,40.4404543,86.547,86.482,0.74601165]
[1772117373551,0.7503102,86.546,86.47,0.74601165]
[1772117373750,15.45744199,86.51,86.47,0.74601165]
[1772117373953,15.45744199,86.49,86.45,15.45744199]
[1772117374147,15.45744199,86.48,86.443,0.74601165]
[1772117374347,0.7503102,86.499,86.443,0.74601165]
[1772117374550,15.45744199,86.49,86.443,0.74601165]
[1772117374760,15.45744199,86.49,86.45,15.45744199]
[1772117375080,0.7503102,86.546,86.461,0.74601165]
[1772117375245,0.7503102,86.546,86.45,15.45744199]
[1772117375246,15.45744199,86.49,86.45,15.45744199]
[1772117375441,15.45744199,86.47,86.429,0.74601165]
[1772117375658,11.56483826,86.469,86.43,27.77351033]
[1772117376065,40.47693392,86.469,86.431,0.74601165]
[1772117376255,11.56483826,86.469,86.431,0.74601165]
[1772117376581,0.7503102,86.478,86.417,11.57179721]
[1772117376582,40.4675739,86.489,86.451,0.74601165]
[1772117376947,0.7503102,86.479,86.44,15.45744199]
[1772117377147,15.45744199,86.47,86.43,15.45744199]
[1772117377554,27.02227846,86.47,86.431,11.56992282]
[1772117377753,11.56419074,86.474,86.441,0.74601165]
[1772117378066,11.56216397,86.489,86.46,15.45744199]
[1772117378266,5.36086188,86.523,86.431,40.49472989]
[1772117378267,0.76929317,86.528,86.471,0.76848888]
[1772117378451,15.45744199,86.52,86.471,0.76848888]
[1772117378647,15.45744199,86.51,86.471,0.76848888]
[1772117378849,15.45744199,86.52,86.481,0.76848888]
[1772117379173,11.55695266,86.528,86.491,0.76848888]
[1772117379374,11.55695266,86.528,86.501,0.76848888]
[1772117379574,15.45744199,86.56,86.52,15.45744199]
[1772117379762,15.45744199,86.55,86.512,0.76848888]
[1772117379966,28.88217672,86.559,86.52,15.45744199]
[1772117380268,11.55254675,86.561,86.53,15.45744199]
[1772117380474,11.55254675,86.561,86.531,0.76848888]
[1772117380671,11.55054518,86.576,86.54,15.45744199]
[1772117380873,11.54681077,86.604,86.551,0.76848888]
[1772117381064,15.45744199,86.6,86.56,15.45744199]
[1772117381269,15.45744199,86.6,86.51,190.72939517]
[1772117381270,11.54681077,86.604,86.57,15.45744199]
[1772117381578,28.86702692,86.604,86.561,0.76848888]
[1772117381777,28.86702692,86.604,86.566,0.76848888]
[1772117382074,28.86702692,86.604,86.57,15.45744199]
[1772117382276,28.86702692,86.604,86.571,0.76848888]
[1772117382470,11.54481118,86.619,86.58,15.45744199]
[1772117382671,11.54481118,86.619,86.59,15.45744199]
[1772117382856,11.54481118,86.619,86.583,0.76848888]
[1772117383057,0.2,86.62,86.6,15.45744199]
[1772117383659,11.54354312,86.629,86.602,0.76848888]
[1772117384055,11.54354312,86.629,86.196,127.595685]
[1772117384056,15.45744199,86.62,86.537,0.76848888]
[1772117384281,11.54278948,86.635,86.6,16.22593087]
[1772117384491,11.54278948,86.635,86.601,0.76848888]
[1772117384658,11.54278948,86.635,86.6,15.45744199]
[1772117384859,16.22673516,86.62,86.58,15.45744199]
[1772117385173,16.22673516,86.61,86.57,15.45744199]
[1772117385380,15.4288162,86.6,86.56,15.4288162]
[1772117385757,15.4288162,86.59,86.554,0.76848888]
[1772117386077,11.54747745,86.599,86.554,0.76848888]
[1772117386279,15.4288162,86.59,86.554,0.76848888]
[1772117386475,40.41617108,86.599,86.56,15.4288162]
[1772117386678,11.54592806,86.611,86.58,15.4288162]
[1772117386879,15.4288162,86.6,86.56,15.4288162]
[1772117387076,15.4288162,86.58,86.499,0.76848888]
[1772117387283,15.4288162,86.55,86.515,0.76848888]
[1772117387570,15.4288162,86.55,86.497,40.46383111]
[1772117387571,15.4288162,86.57,86.53,15.4288162]
[1772117387795,15.4288162,86.58,86.533,0.76848888]
[1772117388079,26.97887158,86.58,86.541,0.76848888]
[1772117388587,26.97887158,86.58,86.54,15.4288162]
[1772117388588,0.76929317,86.549,86.501,0.76848888]
[1772117388782,15.4288162,86.52,86.481,0.76848888]
[1772117389080,15.4288162,86.54,86.501,0.76848888]
[1772117389280,15.4288162,86.52,86.49,0.76848888]
[1772117389474,16.19810937,86.54,86.49,0.76848888]
[1772117389779,282.9753268,86.58,86.49,27.75924086]
[1772117389780,11.5568191,86.529,86.49,27.75924086]
[1772117389978,15.4288162,86.52,86.49,0.76848888]
[1772117390285,11.5568191,86.529,86.49,16.19730508]
[1772117390481,11.5568191,86.529,86.491,0.76848888]
[1772117390788,15.4288162,86.55,86.51,15.4288162]
[1772117391081,15.4288162,86.54,86.496,0.76848888]
[1772117391262,0.76929317,86.549,86.5,15.4288162]
[1772117391972,15.4288162,86.52,86.482,0.76848888]
[1772117392165,15.4288162,86.52,86.48,15.4288162]
[1772117392478,11.55428201,86.548,86.51,15.4288162]
[1772117392677,40.43998705,86.548,86.51,15.4288162]
[1772117393068,0.76929317,86.553,86.511,0.76848888]
[1772117393069,11.55394788,86.551,86.511,0.76848888]
[1772117393297,0.76929317,86.569,86.53,15.4288162]
[1772117393464,11.5516126,86.568,86.53,16.19730508]
[1772117393686,11.55014495,86.579,86.54,15.4288162]
[1772117393858,11.55014495,86.579,86.465,283.3516134]
[1772117393859,15.4288162,86.56,86.52,15.4288162]
[1772117394289,15.4288162,86.55,86.502,0.76848888]
[1772117394510,15.4288162,86.55,86.511,0.76848888]
[1772117394683,0.76929317,86.559,86.52,15.4288162]
[1772117395286,15.4288162,86.53,86.49,15.4288162]
[1772117395484,15.4288162,86.52,86.481,0.76848888]
[1772117395663,0.76929317,86.529,86.481,0.76848888]
[1772117395997,40.44933431,86.528,86.481,0.76848888]
[1772117396288,15.4288162,86.52,86.482,11.56309983]
[1772117396464,15.4288162,86.54,86.501,0.76445517]
[1772117396664,15.4288162,86.54,86.486,0.76445517]
[1772117396867,15.4288162,86.53,86.49,15.4288162]
[1772117397165,11.55414851,86.549,86.51,15.4288162]
[1772117397361,11.55414851,86.549,86.51,16.19327137]
[1772117398364,15.4288162,86.54,86.51,0.76445517]
[1772117398766,15.4288162,86.54,86.5,16.19327137]
[1772117399070,40.4395198,86.549,86.502,0.76445517]
[1772117399270,11.55414851,86.549,86.502,0.76445517]
[1772117399591,40.4395198,86.549,86.51,15.4288162]
[1772117399790,11.55414851,86.549,86.51,15.4288162]
[1772117400086,11.55147916,86.569,86.54,15.4288162]
[1772117400264,15.4288162,86.56,86.523,11.55750517]
[1772117400464,11.55147916,86.569,86.5,15.4288162]
[1772117400465,16.1683096,86.54,86.5,15.4288162]
[1772117400664,15.4288162,86.54,86.501,0.76445517]
[1772117400865,15.4288162,86.55,86.51,15.4288162]
[1772117401087,15.4288162,86.54,86.501,0.76445517]
[1772117401291,15.4288162,86.52,86.471,0.76445517]
[1772117401484,0.7394934,86.529,86.49,15.4288162]
[1772117401785,16.1683096,86.56,86.52,15.4288162]
[1772117401994,15.4288162,86.56,86.521,0.76445517]
[1772117402288,0.7394934,86.578,86.54,15.4288162]
[1772117402586,0.7394934,86.569,86.53,15.4288162]
[1772117402912,15.4288162,86.59,86.541,0.76445517]
[1772117403209,15.4288162,86.6,86.56,15.4288162]
[1772117403363,0.7394934,86.599,86.551,0.76445517]
[1772117403565,0.7394934,86.589,86.54,15.4288162]
[1772117403766,0.7394934,86.589,86.55,15.4288162]
[1772117403967,16.1683096,86.58,86.54,15.4288162]
[1772117404168,11.55014495,86.579,86.541,11.5552166]
[1772117404391,11.54954677,86.584,86.551,0.76445517]
[1772117404694,0.7394934,86.629,86.571,0.76445517]
[1772117404889,0.7394934,86.629,86.58,15.4288162]
[1772117405097,15.4288162,86.6,86.56,15.4288162]
[1772117405494,15.4288162,86.6,86.551,0.76445517]
[1772117405708,15.4288162,86.59,86.551,0.76445517]
[1772117405999,15.4288162,86.61,86.561,0.76445517]
[1772117406307,0.7394934,86.611,86.59,15.4288162]
[1772117406502,11.54601085,86.61,86.578,0.76445517]
[1772117406888,15.4288162,86.6,86.563,0.76445517]
[1772117407401,9.89253697,86.59,86.551,0.76445517]
[1772117407718,50.30357495,86.61,86.57,9.89253697]
[1772117407904,40.41103798,86.61,86.571,0.76445517]
[1772117408211,12.28544157,86.611,86.59,9.89253697]
[1772117408419,0.7394934,86.611,86.6,9.89253697]
[1772117408738,0.7394934,86.611,86.591,0.76445517]
[1772117408876,11.54601085,86.61,86.591,0.76445517]
[1772117409078,9.89253697,86.63,86.591,0.76445517]
[1772117409079,0.7394934,86.639,86.591,0.76445517]
[1772117409290,0.7394934,86.659,86.61,9.89253697]
[1772117409598,11.53828402,86.668,86.631,0.76445517]
[1772117409810,11.53695286,86.678,86.64,9.89253697]
[1772117409978,9.89253697,86.67,86.631,0.76445517]
[1772117410174,9.89253697,86.67,86.58,9.89253697]
[1772117410175,11.53695286,86.678,86.642,0.76445517]
[1772117410399,11.53695286,86.678,86.628,0.76445517]
[1772117410708,11.53695286,86.678,86.645,0.76445517]
[1772117411006,0.7394934,86.659,86.616,0.76445517]
[1772117411236,0.7394934,86.639,86.59,10.65699214]
[1772117411497,9.89253697,86.67,86.63,9.89253697]
[1772117411707,9.89253697,86.67,86.581,190.57298943]
[1772117411708,11.53695286,86.678,86.641,0.76445517]
[1772117411998,11.53695286,86.678,86.65,9.89253697]
[1772117412601,0.2,86.68,86.65,9.89253697]
[1772117412818,11.53681976,86.679,86.64,9.89253697]
[1772117413024,0.2,86.68,86.65,9.89253697]
[1772117413200,9.89253697,86.67,86.63,9.89253697]
[1772117413804,50.47102389,86.68,86.641,0.76445517]
[1772117414003,0.2,86.68,86.651,0.76445517]
[1772117414296,0.2,86.68,86.66,9.89253697]
[1772117414698,10.09253697,86.68,86.64,10.65699214]
[1772117414900,11.53681976,86.679,86.641,0.76445517]
[1772117415099,0.2,86.68,86.642,0.76445517]
[1772117415304,0.2,86.68,86.661,0.76445517]
[1772117415506,11.53388584,86.702,86.67,9.89253697]
[1772117415706,10.63203037,86.71,86.67,10.65699214]
[1772117415909,0.7394934,86.709,86.671,0.76445517]
[1772117416117,11.5329612,86.708,86.672,11.53775152]
[1772117416799,46.11542777,86.739,86.672,11.53775152]
[1772117416800,0.7394934,86.737,86.7,9.89253697]
[1772117417003,11.53016868,86.729,86.691,0.76445517]
[1772117417199,0.7394934,86.719,86.672,11.53775152]
[1772117417503,9.89253697,86.72,86.681,0.76445517]
[1772117417711,9.89253697,86.71,86.67,9.89253697]
[1772117417909,9.89253697,86.71,86.671,0.76445517]
[1772117418104,0.2,86.73,86.703,0.76445517]
[1772117418321,0.2,86.73,86.71,9.89253697]
[1772117418496,11.52652681,86.757,86.721,0.76445517]
[1772117418896,11.52652681,86.757,86.73,9.89253697]
[1772117419219,6.70442583,86.788,86.741,0.76445517]
[1772117419393,9.89253697,86.77,86.725,0.76445517]
[1772117419593,9.89253697,86.77,86.73,9.89253697]
[1772117420114,0.7394934,86.758,86.71,10.65699214]
[1772117420322,9.89253697,86.73,86.696,0.76445517]
[1772117420614,0.7394934,86.796,86.721,0.76445517]
[1772117420791,40.32397432,86.797,86.738,0.76445517]
[1772117420998,11.52113552,86.797,86.76,9.89253697]
[1772117421209,11.52113552,86.797,86.751,0.76445517]
[1772117421405,11.52113552,86.797,86.76,9.89253697]
[1772117421710,40.31375619,86.819,86.781,0.76445517]
[1772117422015,11.51821605,86.819,86.781,0.76445517]
[1772117422520,9.89253697,86.81,86.781,0.76445517]
[1772117422713,0.7394934,86.818,86.768,0.76445517]
[1772117422920,9.89253697,86.78,86.74,9.89253697]
[1772117423097,9.89253697,86.78,86.739,0.76445517]
[1772117423098,9.89253697,86.76,86.72,9.89253697]
[1772117423300,9.89253697,86.76,86.66,46.15687428]
[1772117423301,9.89253697,86.73,86.684,0.76445517]
[1772117423620,9.89253697,86.73,86.691,0.76445517]
[1772117423797,9.89253697,86.72,86.691,0.76445517]
[1772117424003,9.89253697,86.73,86.691,0.76445517]
[1772117424198,40.35559039,86.729,86.691,0.76445517]
[1772117424417,0.7394934,86.739,86.7,9.89253697]
[1772117424618,11.5289723,86.738,86.701,0.76445517]
[1772117424822,11.52711176,86.752,86.711,0.76445517]
[1772117424997,11.52525182,86.766,86.73,9.89253697]
[1772117425196,11.52525182,86.766,86.731,0.76445517]
[1772117425396,9.89253697,86.77,86.731,0.76445517]
[1772117425602,9.89253697,86.78,86.741,0.76445517]
[1772117425802,9.89253697,86.75,86.722,0.76445517]
[1772117426010,9.89253697,86.77,86.731,0.69032317]
[1772117426301,9.89253697,86.77,86.733,0.69032317]
[1772117426500,11.52411968,86.775,86.733,0.69032317]
[1772117426915,9.89253697,86.76,86.725,11.53057964]
[1772117427113,9.89253697,86.76,86.725,12.22090281]
[1772117427312,9.89253697,86.77,86.731,0.69032317]
[1772117427512,0.70263266,86.759,86.721,11.53123234]
[1772117427905,9.89253697,86.74,86.7,10.58286014]
[1772117428121,9.89253697,86.74,86.701,0.69032317]
[1772117428326,21.42268196,86.73,86.691,11.5352228]
[1772117428810,11.52649095,86.757,86.711,0.69032317]
[1772117429001,11.52618172,86.759,86.721,0.69032317]
[1772117429506,9.89253697,86.74,86.7,9.89253697]
[1772117429701,0.70263266,86.729,86.68,9.89253697]
[1772117429907,132.55108978,86.759,86.681,0.69032317]
[1772117429908,9.89253697,86.72,86.681,0.69032317]
[1772117430211,0.70263266,86.709,86.67,9.89253697]
[1772117430415,11.5329612,86.708,86.671,11.53788464]
[1772117430617,0.70263266,86.709,86.671,11.53788464]
[1772117430618,11.53282819,86.709,86.671,12.22820781]
[1772117430807,11.53282819,86.709,86.671,0.69032317]
[1772117431004,9.89253697,86.7,86.671,0.69032317]
[1772117431333,9.89253697,86.72,86.681,0.69032317]
[1772117431505,9.89253697,86.73,86.691,0.69032317]
[1772117431710,11.52923814,86.736,86.7,9.89253697]
[1772117431904,9.89253697,86.74,86.701,0.69032317]
[1772117432120,69.04144093,86.905,86.701,0.69032317]
[1772117432121,9.89253697,86.73,86.701,0.69032317]
[1772117432324,11.53016868,86.729,86.69,9.89253697]
[1772117432533,9.89253697,86.71,86.675,0.69032317]
[1772117433133,9.89253697,86.71,86.625,46.17592611]
[1772117433134,9.89253697,86.69,86.65,9.89253697]
[1772117433311,9.89253697,86.69,86.651,0.69032317]
[1772117433716,0.70263266,86.669,86.626,11.543762]
[1772117433923,9.89253697,86.67,86.631,0.69032317]
[1772117434104,282.48913278,86.729,86.641,0.69032317]
[1772117434105,9.89253697,86.68,86.641,0.69032317]
[1772117434310,40.38818817,86.659,86.63,0.1]
[1772117434511,9.89253697,86.65,86.63,0.1]
[1772117434730,0.70263266,86.649,86.63,0.1]
[1772117434932,9.89253697,86.65,86.63,0.1]
[1772117435729,9.89253697,86.66,86.631,0.69032317]
[1772117436251,9.89253697,86.67,86.631,0.69032317]
[1772117436445,11.53702584,86.678,86.641,0.69032317]
[1772117436735,9.89253697,86.66,86.63,0.1]
[1772117436940,0.70263266,86.649,86.611,11.54587754]
[1772117437232,0.70263266,86.649,86.6,9.89253697]
[1772117437233,9.89253697,86.64,86.6,9.89253697]
[1772117437437,9.89253697,86.63,86.594,12.2383632]
[1772117437608,9.89253697,86.63,86.594,0.69032317]
[1772117437816,5.36086188,86.677,86.601,0.66355284]
[1772117438018,9.89253697,86.64,86.601,0.66355284]
[1772117438222,9.89253697,86.64,86.565,46.20763675]
[1772117438223,9.89253697,86.62,86.587,0.66355284]
[1772117438624,224.97577181,86.676,86.601,0.66355284]
[1772117438910,224.97577181,86.676,86.621,0.66355284]
[1772117438911,9.89253697,86.66,86.621,0.66355284]
[1772117439115,9.89253697,86.65,86.61,10.55608981]
[1772117439946,9.89253697,86.65,86.588,40.42130548]
[1772117439947,9.89253697,86.67,86.631,0.66355284]
[1772117440112,9.89253697,86.69,86.65,9.89253697]
[1772117440312,11.53548893,86.689,86.652,11.54041453]
[1772117440540,9.89253697,86.7,86.66,10.55608981]
[1772117440726,11.53167917,86.718,86.671,0.66355284]
[1772117440941,10.58553469,86.71,86.671,0.66355284]
[1772117441233,55.99720575,86.76,86.69,9.89253697]
[1772117441234,11.53104561,86.723,86.69,9.89253697]
[1772117441431,9.89253697,86.73,86.691,0.66355284]
[1772117441831,11.52966611,86.733,86.681,0.66355284]
[1772117441832,9.89253697,86.72,86.681,0.66355284]
[1772117442026,9.89253697,86.71,86.67,9.89253697]
[1772117442228,9.89253697,86.69,86.653,0.66355284]
[1772117442435,9.89253697,86.71,86.67,9.89253697]
[1772117442612,9.89253697,86.68,86.649,0.66355284]
[1772117442813,9.89253697,86.68,86.64,9.89253697]
[1772117443024,9.89253697,86.68,86.641,0.66355284]
[1772117443533,11.53347317,86.705,86.661,0.66355284]
[1772117443534,9.89253697,86.69,86.661,0.66355284]
[1772117443937,9.89253697,86.69,86.65,9.89253697]
[1772117444317,0.69299772,86.7,86.661,0.66355284]
[1772117444318,9.89253697,86.7,86.661,0.66355284]
[1772117444533,9.89253697,86.7,86.615,46.18125009]
[1772117444534,9.89253697,86.72,86.681,0.66355284]
[1772117444736,9.89253697,86.72,86.662,11.53908287]
[1772117444737,9.89253697,86.73,86.691,0.66355284]
[1772117445431,21.38753325,86.76,86.72,10.52503722]
[1772117445752,9.86148438,86.75,86.706,0.66355284]
[1772117445922,9.86148438,86.74,86.692,0.66355284]
[1772117446127,9.86148438,86.73,86.692,0.66355284]
[1772117446323,9.86148438,86.74,86.7,9.86148438]
[1772117446517,11.52883939,86.739,86.7,9.86148438]
[1772117446743,40.35093786,86.739,86.701,0.66355284]
[1772117447045,11.52808951,86.745,86.711,0.66355284]
[1772117447233,11.52808951,86.745,86.683,0.66355284]
[1772117447234,9.86148438,86.72,86.683,0.66355284]
[1772117447427,74.92881761,86.749,86.653,40.39098473]
[1772117447428,0.69299772,86.749,86.71,9.86148438]